Cogmind - Beta 16 *** ADVENTURER MODE // 2025.12.22 @ 12:37:46 Player: rubik mind Result: Destroyed by D-53 Grenadier with Mini Grenade Launcher Performance ------------- Evolutions (0) 0 Regions Visited (4) 800 Robots Destroyed (28) 140 Value Destroyed (507) 507 Prototype IDs (0) 0 Alien Tech Used (0) 0 Bonus (21) 21 TOTAL SCORE: 1468 Bonus ------- Follower Combat Kills 21 Cogmind --------- Core Integrity 0/250 Matter 300/300 Energy 125/125 System Corruption 0% Temperature Cool (0) Movement Walking (120) Location -9/Mines Parts ------- > --- POWER (1) -------- Light Ion Engine > --- PROPULSION (2) --- Aluminum Leg Aluminum Leg > --- UTILITY (2) ------ Small Storage Unit Seismic Detector > --- WEAPON (2) ------- Light Assault Rifle Light Assault Rifle > --- INVENTORY (8) ---- Ion Engine Light Ion Engine Aluminum Leg High-capacity Storage Unit Mining Laser EMP Trap EMP Trap EMP Trap Peak State ------------ > --- POWER ------------ Light Ion Engine > --- PROPULSION ------- Aluminum Leg Aluminum Leg > --- UTILITY ---------- Scrap Suit > --- WEAPON ----------- EM Pulse Gun Light Assault Rifle > --- INVENTORY -------- Ion Engine Aluminum Leg Small Laser [Rating: 13] Favorites ----------- Power Light Ion Engine Engine Light Ion Engine Power Core Light Nuclear Core Propulsion Aluminum Leg Leg Aluminum Leg Wheel Wheel Flight Unit Flight Unit Utility Structural Scanner Device Structural Scanner Storage Small Storage Unit Protection Light Armor Plating Weapon Light Assault Rifle Energy Gun EM Pulse Gun Ballistic Gun Light Assault Rifle Special Weapon Mining Laser Slashing Weapon Mining Claw Build | -11 -10 -10 -10 -9 ------- Run | Yrd Mat Min Exi Min Slots Evolved . | . . . . . Power . | . . . . . Propulsion . | . . . . . Utility . | . . . . . Weapon . | . . . . . Parts Attached 39 | 6 18 10 3 2 Power 8 | 1 2 4 . 1 Engine 7 | 1 1 4 . 1 Core 1 | . 1 . . . Reactor . | . . . . . Propulsion 9 | 2 6 1 . . Treads . | . . . . . Leg 5 | . 4 1 . . Wheel 2 | 2 . . . . Hover . | . . . . . Flight 2 | . 2 . . . Utility 11 | 1 6 1 3 . Device 5 | 1 3 1 . . Storage 5 | . 2 . 3 . Processor . | . . . . . Hackware . | . . . . . Protection 1 | . 1 . . . Artifact . | . . . . . Weapon 11 | 2 4 4 . 1 Energy Gun 2 | 1 . 1 . . Energy Cannon . | . . . . . Ballistic Gun 6 | 1 1 3 . 1 Ballistic Cannon . | . . . . . Launcher . | . . . . . Special Weapon 2 | . 2 . . . Impact Weapon . | . . . . . Slashing Weapon 1 | . 1 . . . Piercing Weapon . | . . . . . Special Melee Weapon . | . . . . . Unidentified Prototypes . | . . . . . Parts Lost 6 | . 4 1 . 1 Power 2 | . 1 1 . . Propulsion . | . . . . . Utility 2 | . 2 . . . Weapon 2 | . 1 . . 1 Highest Loss Streak 3 | . 3 1 . 1 To Critical Strikes . | . . . . . Average Backups 4 | 2 4 4 4 4 Power . | . . . 1 1 Propulsion 1 | 1 . 1 1 1 Utility . | . . 1 1 1 Weapon 1 | . 1 1 1 1 Tool/Special . | . . . . . Unused Backups 14 | . 8 2 3 1 Power 4 | . 2 . 2 . Propulsion 2 | . 2 . . . Utility 4 | . 3 . 1 . Weapon 4 | . 1 2 . 1 Tool/Special . | . . . . . Average Slot Usage (%) 90 | . 92 90 80 97 Engine 9 | . 5 13 14 14 Core 3 | . 8 . . . Leg 16 | . 3 28 28 28 Wheel 7 | . 15 . . . Flight 4 | . 8 . . . Device 15 | . 15 18 8 14 Storage 1 | . . . 1 14 Protection 3 | . 7 . . . Energy Gun 7 | . 3 11 14 4 Ballistic Gun 15 | . 16 14 14 21 Special Weapon 1 | . 2 . . . Slashing Weapon 2 | . 4 2 . . Peak Build Rating 13 | 6 9 13 13 7 Average Rating 8 | 4 7 11 9 6 On Entrance 7 | . 6 9 13 7 Avg Prop Armor Cover (%) 3 | . 3 . . . Naked Turns . | . . . . . Heaviest Build 145 | 6 145 10 12 12 Greatest Support 20 | 20 20 20 20 20 Greatest Overweight (x) 7 | . 7 . . . Average Overweight (x) . | . . . . . Largest Inventory Capacity 30 | 5 30 5 20 8 Average Capacity 5 | 5 5 5 5 8 Most Carried 8 | 5 5 5 5 8 Average Carried 4 | 2 4 4 4 4 Final Capacity 8 | 5 5 5 8 8 Final Carried 8 | 3 5 5 4 8 Scrap Suit Usage (%) 27 | . . 67 55 . Class Distribution -------------------- 55% | Mutant 27% | Scavenger-Scrapper 17% | Scavenger-Mutant Dominant Class ---------------- Mutant | -10/Materials Scavenger-Scrapper | -10/Mines Scavenger-Scrapper | -10/Exiles Scavenger-Mutant | -9/Mines Resources | -11 -10 -10 -10 -9 ----------- Run | Yrd Mat Min Exi Min Matter Collected 750 | 263 292 130 20 45 Remotely . | . . . . . Salvage Created 769 | 48 387 276 . 58 Parts 55 | 1 24 22 . 8 Haulers Intercepted . | . . . . . Recyclers Shooed . | . . . . . Parts Field Recycled . | . . . . . Retrieved Matter . | . . . . . Parts Self-Destructed . | . . . . . Prevented . | . . . . . Parts Restored . | . . . . . Kills | -11 -10 -10 -10 -9 ------- Run | Yrd Mat Min Exi Min Combat Hostiles Destroyed 25 | 1 11 9 . 4 Melee 2 | . 2 . . . Guns 21 | 1 9 7 . 4 AOE 2 | . . 2 . . Classes Destroyed 4 | 1 2 1 . . Recycler 2 | . . 2 . . Watcher 1 | . 1 . . . Swarmer 16 | . 3 9 . 4 Grunt 9 | 1 8 . . . Best Kill Streak 5 | 1 3 5 . 4 Combat Bots Only 4 | 1 3 3 . 4 Max Kills in Single Turn 4 | 1 1 4 . 1 Gunslinging 1 | . . 1 . . Exploded 2 | . . 2 . . Melee 1 | . 1 . . . Uniques/NPCs Destroyed . | . . . . . Combat | -11 -10 -10 -10 -9 -------- Run | Yrd Mat Min Exi Min Hostile Shots Fired 163 | 3 92 49 . 19 Missed 44 | 2 22 16 . 4 Hits 119 | 1 70 33 . 15 Projectile 119 | 1 70 33 . 15 AOE 2 | . . . . 2 Damage Taken 997 | 9 634 193 . 161 Core 283 | . 213 22 . 48 Absorbed by Shields . | . . . . . Ignored by Resistances 314 | 3 196 68 . 47 Core Remaining (%) 100 | 100 . . . . Volleys Fired 95 | 3 57 25 . 10 Largest 2 | 2 2 2 . 2 Hottest 120 | 60 120 60 . 60 Shots Fired 137 | 6 88 31 . 12 Gun 122 | 6 73 31 . 12 Cannon . | . . . . . Launcher . | . . . . . Special 15 | . 15 . . . Kinetic 90 | 3 52 25 . 10 Thermal 39 | 3 36 . . . Explosive . | . . . . . Electromagnetic 8 | . . 6 . 2 Robot Hit Streak 16 | 5 15 16 . 3 Robot Miss Streak 2 | . 2 1 . 2 Penetration Max . | . . . . . Secondary Targets 1 | . . 1 . . Max Gunslinging Chain 1 | . . 1 . . Shots Hit Robots 98 | 5 66 20 . 7 Core Hits 47 | 2 26 13 . 6 Critical Kills . | . . . . . Critical Parts Destroyed . | . . . . . Critical Strikes . | . . . . . Melee Attacks 4 | . 4 . . . Impact . | . . . . . Slashing 4 | . 4 . . . Piercing . | . . . . . Sneak Attacks . | . . . . . Combat Hostiles . | . . . . . Follow-up Attacks . | . . . . . Damage Inflicted 1025 | 43 655 251 . 76 Guns 749 | 43 453 177 . 76 Cannons . | . . . . . Explosions 74 | . . 74 . . Melee 89 | . 89 . . . Ramming . | . . . . . Kinetic 512 | 12 305 130 . 65 Thermal 366 | 31 261 74 . . Explosive . | . . . . . Electromagnetic 58 | . . 47 . 11 Impact . | . . . . . Slashing 89 | . 89 . . . Piercing . | . . . . . Highest Corruption . | . . . . . Average Corruption . | . . . . . Corruption Purged . | . . . . . Corruption Blocked . | . . . . . Overload Shots . | . . . . . Overflow Damage . | . . . . . Projectiles . | . . . . . Explosions . | . . . . . Melee . | . . . . . Knockbacks . | . . . . . Impact . | . . . . . Kinetic . | . . . . . Secondary . | . . . . . Self-Inflicted Damage 6 | . . 6 . . Shots 1 | . . 1 . . Rammed . | . . . . . Targets Rammed . | . . . . . Kicked . | . . . . . Crushed . | . . . . . Highest Temperature 367 | 26 367 32 . 20 Average Temperature 99 | 16 117 15 . 16 Received Heat Transfer 456 | 6 450 . . . Effects 4 | . 4 . . . Energy Bleed 1 | . 1 . . . Interference 2 | . 2 . . . Short Circuit 1 | . 1 . . . Siege Activations . | . . . . . Martial Activations . | . . . . . Shielding Activations . | . . . . . Robots Disrupted . | . . . . . Combat Hostiles . | . . . . . Robots Corrupted . | . . . . . Combat Hostiles . | . . . . . Parts Fried . | . . . . . Impact Corruptions . | . . . . . Robots Melted . | . . . . . Combat Hostiles . | . . . . . Parts Melted . | . . . . . Heat Transferred 975 | 75 700 200 . . Parts Sabotaged . | . . . . . Parts Stolen . | . . . . . Parts Stripped . | . . . . . Power Chain Reactions 1 | . . 1 . . Alert | -11 -10 -10 -10 -9 ------- Run | Yrd Mat Min Exi Min Maximum Alert Level . | . . . . . Low Security (%) 100 | 100 100 100 . 100 Level 1 . | . . . . . Level 2 . | . . . . . Level 3 . | . . . . . Level 4 . | . . . . . Level 5 . | . . . . . High Security . | . . . . . Max Security . | . . . . . Peak Influence 112 | 20 92 112 . 70 Initial . | . . . . . Average 31 | 2 23 48 . 44 Influence Increases 692 | 20 285 297 . 90 Destroy 0b10 Robot/C 560 | 20 220 240 . 80 Destroy 0b10 Robot/NC 15 | . 5 10 . . Destroy Leader 82 | . 32 40 . 10 Allied During Kill 2 | . . 2 . . Successful Hack 10 | . 10 . . . Destroy Structure 8 | . 3 5 . . Partial Spotted 15 | . 15 . . . Influence Decreases 652 | 20 285 245 52 50 Entered New Map 52 | . . . 52 . Time Decay 577 | 20 272 245 . 40 Lost Part 23 | . 13 . . 10 Squads Dispatched 1 | . 1 . . . Investigation 1 | . 1 . . . Extermination . | . . . . . Reinforcement . | . . . . . Assault . | . . . . . Garrison . | . . . . . Intercept . | . . . . . Searches Triggered . | . . . . . Construction Impeded . | . . . . . Haulers Reinforced . | . . . . . Active Scanning Responses . | . . . . . Cargo Convoy Interrupts . | . . . . . Stealth | -11 -10 -10 -10 -9 --------- Run | Yrd Mat Min Exi Min Distress Signals 2 | . 2 . . . Communications Jammed . | . . . . . Distress Signals . | . . . . . Times Spotted 37 | 1 18 11 . 7 Peak Tracking Total 5 | 1 5 3 . 4 Tactical Retreats . | . . . . . Traps | -11 -10 -10 -10 -9 ------- Run | Yrd Mat Min Exi Min Traps Triggered 2 | . 2 . . . Indirectly . | . . . . . Trap Hack Attempts . | . . . . . Triggered . | . . . . . Disarmed . | . . . . . Reprogrammed . | . . . . . Reused . | . . . . . Traps Extracted . | . . . . . Installed . | . . . . . Triggered . | . . . . . Most Traps Carried 3 | . . . . 3 Machines | -11 -10 -10 -10 -9 ---------- Run | Yrd Mat Min Exi Min Machines Disabled . | . . . . . Max in Single Turn . | . . . . . Machines Repaired . | . . . . . Machines Dismantled . | . . . . . Machines Sabotaged . | . . . . . Overloaded Fab Kills . | . . . . . Hacking | -11 -10 -10 -10 -9 --------- Run | Yrd Mat Min Exi Min Machines Accessed 5 | . 4 . 1 . Terminals 2 | . 2 . . . Fabricators . | . . . . . Repair Stations 1 | . 1 . . . Recycling Units 1 | . 1 . . . Scanalyzers . | . . . . . Garrison Access . | . . . . . Total Hacks 28 | . 5 . 23 . Successful 27 | . 4 . 23 . Failed 1 | . 1 . . . Catastrophic . | . . . . . Database Lockouts . | . . . . . Manual . | . . . . . Terminals 2 | . 2 . . . Fabricators . | . . . . . Repair Stations 2 | . 2 . . . Recycling Units 1 | . 1 . . . Scanalyzers . | . . . . . Garrison Access . | . . . . . Terminal Hacks 25 | . 2 . 23 . Record 25 | . 2 . 23 . Fabricator Hacks . | . . . . . Repair Station Hacks 1 | . 1 . . . Scan Component 1 | . 1 . . . Recycling Unit Hacks 1 | . 1 . . . Report Inventory 1 | . 1 . . . Scanalyzer . | . . . . . Garrison Access Hacks . | . . . . . Unauthorized Hacks . | . . . . . Terminals . | . . . . . Fabricators . | . . . . . Repair Stations . | . . . . . Recycling Units . | . . . . . Scanalyzers . | . . . . . Garrison Access . | . . . . . Data Cores Recovered . | . . . . . Used . | . . . . . Hacking Detections 2 | . 2 . . . Full Trace Events . | . . . . . Feedback Events . | . . . . . Feedback Blocked . | . . . . . Robot Schematics Acquired . | . . . . . Robots Built . | . . . . . Authchips . | . . . . . Time . | . . . . . Total Robot Build Rating . | . . . . . Part Schematics Acquired . | . . . . . Parts Built . | . . . . . Authchips . | . . . . . Time . | . . . . . Total Part Build Rating . | . . . . . Part Studies Acquired . | . . . . . Parts Repaired . | . . . . . Time . | . . . . . Parts Recycled . | . . . . . Recycled Matter . | . . . . . Retrieved Matter . | . . . . . Retrieved Components . | . . . . . Parts Scanalyzed . | . . . . . Part Schematics Acquired . | . . . . . Parts Damaged . | . . . . . Bothacking | -11 -10 -10 -10 -9 ------------ Run | Yrd Mat Min Exi Min Used RIF Installer . | . . . . . Robots Hacked . | . . . . . Non-combat . | . . . . . Combat . | . . . . . Robot Hacks Applied . | . . . . . Relay Couplers Released . | . . . . . Fabnet Peak Effective % . | . . . . . Robots Rewired . | . . . . . Allies Hacked . | . . . . . Hacks Repelled . | . . . . . Allies | -11 -10 -10 -10 -9 -------- Run | Yrd Mat Min Exi Min Total Allies 1 | . . 1 . . Largest Group 1 | . . 1 1 . Highest-Rated Group 31 | . . 31 31 . Highest-Rated Ally 31 | . . 31 31 . Total Orders . | . . . . . Ally Attacks 5 | . . 5 . . Total Damage 84 | . . 84 . . Kills 3 | . . 3 . . Allies Corrupted . | . . . . . Allies Melted . | . . . . . Intel | -11 -10 -10 -10 -9 ------- Run | Yrd Mat Min Exi Min Active Infowar (turns) 1093 | . 787 189 1 116 Structural 934 | . 745 189 . . Seismic 426 | . 120 189 1 116 Robot Analysis Total . | . . . . . Derelict Logs Recovered 2 | . . 2 . . Drone Launches . | . . . . . Drone Recoveries . | . . . . . Exploration | -11 -10 -10 -10 -9 ------------- Run | Yrd Mat Min Exi Min Turns Passed 2149 | 156 950 584 343 116 Spaces Moved 1673 | 82 826 414 276 75 Core 38 | 38 . . . . Treads . | . . . . . Legs 869 | . 104 414 276 75 Wheels 523 | 44 479 . . . Hover . | . . . . . Flight 243 | . 243 . . . Fastest Speed 37 | 50 37 120 120 120 Average Speed 100 | 66 85 120 120 120 Slowest Speed 200 | 80 200 120 120 120 Overloaded Moves . | . . . . . Propulsion Burnouts . | . . . . . Robots Hopped . | . . . . . Potential Cave-ins . | . . . . . Cave-ins Triggered . | . . . . . Exploration Rate (%) 46 | 7 84 63 57 21 Regions Visited 4 Branch Regions 3 Pre-discovered Areas 1 | . . . 1 . Known Exits Taken . | . . . . . Unknown Exits Taken 4 | 1 1 1 1 . Scrap Searched 1 | . . 1 . . Spaces Dug . | . . . . . Terrain Destroyed 9 | . 4 5 . . Melee . | . . . . . Projectile 4 | . 4 . . . AOE 5 | . . 5 . . Terrain Rammed . | . . . . . Walls Destroyed . | . . . . . Machines Disabled . | . . . . . Actions | -11 -10 -10 -10 -9 --------- Run | Yrd Mat Min Exi Min Total 2019 | 178 980 479 292 90 Wait 109 | 79 16 13 1 . Move 1669 | 81 825 413 275 75 Hop . | . . . . . Pick Up 43 | 9 21 6 4 3 Fast Attach 11 | . 7 1 2 1 Attach 24 | 6 14 2 2 . Detach 11 | . 9 . 2 . Swap 15 | . 6 7 1 1 Drop 38 | . 21 12 5 . Fire 95 | 3 57 25 . 10 Melee 4 | . 4 . . . Ram . | . . . . . Kick . | . . . . . Crush . | . . . . . Escape Stasis . | . . . . . Rewire . | . . . . . Trap . | . . . . . Miscellaneous . | . . . . . Route ------- -11/Scrapyard -10/Materials (discovered 4 exits: [*Mat] / [*Min x2] / [*Sub]) -10/Mines -10/Exiles (discovered 2 exits: [*Min x2]) -9/Mines (discovered 1 exit: [*Mat]) History --------- Turn | Location | Event 2 | -11/Scrapyard | Met Revision 17 57 | -11/Scrapyard | Discovered new exit (range 8) 157 | -11/Scrapyard | Entered Materials 324 | -10/Materials | Build established: Mutant 395 | -10/Materials | Core integrity fell below 50% 482 | -10/Materials | Discovered new exit (range 7) 551 | -10/Materials | Discovered new exit (range 8) 670 | -10/Materials | Discovered new exit (range 15) 796 | -10/Materials | Discovered new exit (range 16) 916 | -10/Materials | Lost 3 parts (1p1u1w) 962 | -10/Materials | Core integrity fell below 20% 1107 | -10/Materials | Entered Mines 1291 | -10/Mines | Found a Scrap Suit stashed away for nefarious purposes 1295 | -10/Mines | Found Scrap Suit 1464 | -10/Mines | Received a Mining Laser from a helpful Derelict 1587 | -10/Mines | Build established: Scavenger-Scrapper 1686 | -10/Mines | Deemed a non-threat by the Exiles lab entrance 1686 | -10/Mines | Discovered new exit (range 5) 1691 | -10/Mines | Entered Exiles 1691 | -10/Exiles | Accompanied by 1 ally 1720 | -10/Exiles | Discovered new exit (range 15) 1755 | -10/Exiles | Met 8R-AWN 1783 | -10/Exiles | Met EX-HEX 1898 | -10/Exiles | Met EX-DEC 1935 | -10/Exiles | Learned location of Zion (-6) 2019 | -10/Exiles | Discovered new exit (range 14) 2034 | -10/Exiles | Entered Mines 2077 | -9/Mines | Discovered new exit (range 9) 2127 | -9/Mines | Assembled infested the area 2137 | -9/Mines | Found a hidden stash of uninstalled traps 2150 | -9/Mines | Destroyed by D-53 Grenadier with Mini Grenade Launcher Last Messages --------------- Acquired Lgt. Assault Rifle. R-06 Scavenger collects Flight Unit. Acquired 18 matter. K-01 Serf collects debris. Acquired 2 matter. K-01 Serf collects debris. T-07 Excavator is excavating. U-05 Engineer lays Concrete. T-07 Excavator is excavating. U-05 Engineer lays Concrete. ALERT: Infestation in the mines, dispatching Demolisher response squad. A stash of uninstalled traps is collected here! Acquired EMP Trap. K-01 Serf collects debris. Acquired EMP Trap. K-01 Serf collects debris. C-45 Heavy ARC bursts open, deploying its payload. D-53 Grenadier unfolds itself. Map ----- +----------------------------------------------------+ | | | | | ?????????????????????????????????????????????????? | | ?????????????????????????????????????????????????? | | ???????????????????????????????????????????????### | | ?????????????????????????????????????????????## # | | ????????????????????????????????????????????## | | ??????????????????????????????????????####### | | ???????????????????????????####???????# | | ?????????????############### ##??????# | | ?????????????? # #?????## #### | | ??????????????# ##???## ###### # | | ??????????????# # ##### ##### #### ## | | ????????????????# #???#### % #?# #? | | ????????????????# #??????## < #?# #? | | ????????????????#kr#???????## = ##?# #? | | ??? ########## ##???????##### ### = #### #? | | ??? # ##????####??#####?## #? | | ??? ##??## ##????????##########? | | ?????????#### #??# ##?????????????????? | | ????????????# #### #?????????????????? | | ????????????## # #?????????????????? | | ?????????????## d #?????????????????? | | ??????????????# #### d% ##????????????????? | | ??????????????# ???## & ##???????????????? | | ??????????????# ????## @ #???????????????? | | ?????????????? ?????# k #??????????????? | | ????????????? ???? ??????????? | | ????????????# ##???# #????????? | | ???????????? ?????# ## ### ######?????????? | | ??????????? ?????# ?# ###?? #??????????????? | | ?????????? ??????#??## ##???? #??????????????? | | ?????????? ??????????####?????? ??????????????? | | ????????? ? ??????????????????????#??????????????? | | ?????????????????????????????????????????????????? | | ?????????????????????????????????????????????????? | | ?????????????????????????????????????????????????? | | ?????????????????????????????????????????????????? | | ?????????????????????????????????????????????????? | | ?????????????????????????????????????????????????? | | ?????????????????????????????????????????????????? | | ?????????????????????????????????????????????????? | | ?????????????????????????????????????????????????? | | ?????????????????????????????????????????????????? | | ?????????????????????????????????????????????????? | | ?????????????????????????????????????????????????? | | ?????????????????????????????????????????????????? | | ?????????????????????????????????????????????????? | | ?????????????????????????????????????????????????? | | ?????????????????????????????????????????????????? | +----------------------------------------------------+ Best States ------------- Heat Dissipation 35 Energy Generation 14 Energy Capacity 250 Matter Stores 300 Matter Capacity 300 Sight Range 16 Terrain Scan Density 10 Armor Coverage 150 Resistance: KI 20 Resistance: TH 20 Resistance: EX 20 Resistance: EM 20 Resistance: I 20 Resistance: S 20 Resistance: P 20 Evasion (%) 62 Offensive Hacking 10 Item Schematics ----------------- None Robot Schematics ------------------ None Fabricated ------------ Nothing Repaired ---------- Nothing Studied --------- None Alien Tech Used ----------------- None Achievements -------------- DATA ERROR: Steam Global Achievement% Librarian Challenges ------------ None Game ------ Seed CannonStorageReplica Manual? 0 Play Time 01:05:35 Cumulative 3.4 hours Start 2025.12.22 @ 11:09:50 End 2025.12.22 @ 12:37:46 Sessions 1 Manual Loads 0 Difficulty Adventurer Special Mode None Game No. 2 Rogue 0 Adventurer 2 Explorer 0 Win Type - Total 0 Types 0/0/0/0/0/0/0/0/0/0 Lore% 3 Gallery% 3 Achievement% 3 Wizard Run 0 Options --------- Layout 1 ASCII 0 Keyboard 0 Movement Numpad Keybinds 0 Fullscreen 1 Font 24/Smallcaps Map View 50x40 Zoom Use 96% Tactical HUD 0 Map Filters NONE Filters NONE Steam 1 RUN: 7f1b8a50-8861-4c24-bf21-62569c11179b